[Event "SVK-ch Open 2018"]
[Site "Banska Stiavnica"]
[Date "2018.07.07"]
[Round "1"]
[White "Bango, Dominik"]
[Black "Mrvova, Alena"]
[Result "0-1"]
[ECO "B92"]
[WhiteElo "1835"]
[BlackElo "2202"]
[Annotator "NA"]
[PlyCount "54"]
[EventDate "2018.07.07"]
[EventType "swiss"]
[EventCountry "SVK"]
[SourceTitle "playchess.com"]
[Source "ChessBase"]
[SourceQuality "1"]
[TimeControl "40/5400+30:1800+30"]

1. e4 {[%emt 0:00:00]} c5 {[%emt 0:00:08]} 2. Nf3 {[%emt 0:00:00]} d6 {[%emt 0:00:45]} 3. d4 {[%emt 0:00:02]} cxd4 {[%emt 0:00:23]} 4. Nxd4 {[%emt 0:00:08]} Nf6 {[%emt 0:00:16]} 5. Nc3 {[%emt 0:00:13]} a6 {[%emt 0:00:31]} 6. Be2 {[%emt 0:00:15]} e5 {[%emt 0:01:09]} 7. Nb3 {[%emt 0:02:08]} Be7 {[%emt 0:01:30]} 8. O-O {[%emt 0:01:52]} O-O {[%emt 0:01:32]} 9. Be3 {[%emt 0:02:29]} Be6 {[%emt 0:02:47]} 10. f4 {[%emt 0:10:08]} exf4 {[%emt 0:02:21]} 11. Bxf4 {[%emt 0:00:48]} Nc6 {[%emt 0:01:11]} 12. Kh1 {[%emt 0:03:56]} Ne5 {[%emt 0:09:33]} 13. Nd4 {[%emt 0:05:45]} Rc8 {[%emt 0:14:00]} 14. Nxe6 {[%emt 0:44:38]} fxe6 {[%emt 0:00:31]} 15. Bd3 {[%emt 0:01:39]} Qb6 {[%emt 0:07:18]} 16. Bxe5 {[%emt 0:04:42]} dxe5 {[%emt 0:00:24]} 17. Rb1 {[%emt 0:00:23]} Qc6 {[%emt 0:04:21]} 18. a3 {[%emt 0:01:45]} Bc5 {[%emt 0:04:34]} 19. Qe2 {[%emt 0:01:49]} Rcd8 {[%emt 0:02:23]} 20. Nd1 {[%emt 0:02:09]} Nxe4 {[%emt 0:04:37]} 21. Ne3 {[%emt 0:03:58]} Ng5 {[%emt 0:08:00]} 22. h4 {[%emt 0:01:41]} e4 {[%emt 0:02:05]} 23. Bc4 {[%emt 0:02:51]} Nf3 {[%emt 0:06:12]} 24. gxf3 {[%emt 0:03:05]} exf3 {[%emt 0:00:13]} 25. Bxe6+ {[%emt 0:00:30]} Qxe6 {[%emt 0:00:37]} 26. Qc4 {[%emt 0:00:11]} Qxc4 {[%emt 0:00:11]} 27. Nxc4 {[%emt 0:00:04]} Rd4 {[%emt 0:00:08]} 0-1

[Event "SVK-ch Open 2018"]
[Site "Banska Stiavnica"]
[Date "2018.07.07"]
[Round "1"]
[White "Kebis, Milos"]
[Black "Jamrich, Gyorgy"]
[Result "0-1"]
[ECO "A10"]
[WhiteElo "1828"]
[BlackElo "2200"]
[Annotator "NA"]
[PlyCount "140"]
[EventDate "2018.07.07"]
[EventType "swiss"]
[EventCountry "SVK"]
[SourceTitle "playchess.com"]
[Source "ChessBase"]
[SourceQuality "1"]
[TimeControl "40/5400+30:1800+30"]

1. c4 {[%emt 0:00:34]} b6 {[%emt 0:00:00]} 2. Nc3 {[%emt 0:00:31]} Bb7 {[%emt 0:00:00]} 3. d4 {[%emt 0:00:36]} e6 {[%emt 0:00:00]} 4. Nf3 {[%emt 0:01:44]} Bb4 {[%emt 0:00:21]} 5. Bg5 {[%emt 0:04:30]} f6 {[%emt 0:03:10]} 6. Bf4 {[%emt 0:01:22]} Ne7 {[%emt 0:03:36]} 7. Qb3 {[%emt 0:00:36]} Nbc6 {[%emt 0:11:45]} 8. e3 {[%emt 0:04:08]} g5 {[%emt 0:06:33]} 9. Bg3 {[%emt 0:04:16]} h5 {[%emt 0:00:32]} 10. h4 {[%emt 0:08:09]} Nf5 {[%emt 0:01:02]} 11. Bd3 {[%emt 0:05:59]} Nxg3 {[%emt 0:02:42]} 12. fxg3 {[%emt 0:01:28]} g4 {[%emt 0:01:01]} 13. Nd2 {[%emt 0:01:47]} Qe7 {[%emt 0:03:09]} 14. O-O-O {[%emt 0:03:28]} O-O-O {[%emt 0:08:10]} 15. a3 {[%emt 0:01:47]} Bd6 {[%emt 0:01:15]} 16. Nde4 {[%emt 0:02:03]} f5 {[%emt 0:00:21]} 17. Nxd6+ {[%emt 0:01:08]} Qxd6 {[%emt 0:00:07]} 18. Ne2 {[%emt 0:01:19]} Na5 {[%emt 0:00:31]} 19. Qc2 {[%emt 0:04:14]} Bxg2 {[%emt 0:00:14]} 20. Rhg1 {[%emt 0:03:48]} Bf3 {[%emt 0:00:18]} 21. Rd2 {[%emt 0:05:15]} Bxe2 {[%emt 0:07:25]} 22. Bxe2 {[%emt 0:00:27]} e5 {[%emt 0:08:54]} 23. b4 {[%emt 0:04:47]} Nc6 {[%emt 0:01:46]} 24. d5 {[%emt 0:06:54]} Qh6 {[%emt 0:08:09]} 25. Qc3 {[%emt 0:07:46]} Nb8 {[%emt 0:04:26]} 26. Kb1 {[%emt 0:04:51]} f4 {[%emt 0:04:28]} 27. exf4 {[%emt 0:01:55]} exf4 {[%emt 0:00:09]} 28. gxf4 {[%emt 0:00:18]} Qxf4 {[%emt 0:00:21]} 29. Rf1 {[%emt 0:00:22]} Qe4+ {[%emt 0:02:10]} 30. Bd3 {[%emt 0:00:20]} Qe7 {[%emt 0:00:09]} 31. c5 {[%emt 0:01:18]} Rhf8 {[%emt 0:01:34]} 32. Rc1 {[%emt 0:00:37]} c6 {[%emt 0:04:15]} 33. cxb6 {[%emt 0:01:51]} axb6 {[%emt 0:00:06]} 34. Qd4 {[%emt 0:01:36]} Kb7 {[%emt 0:00:35]} 35. Be4 {[%emt 0:03:18]} Ka7 {[%emt 0:00:54]} 36. b5 {[%emt 0:00:42]} Kb7 {[%emt 0:01:52]} 37. Rb2 {[%emt 0:02:05]} Kc8 {[%emt 0:03:00]} 38. bxc6 {[%emt 0:01:50]} dxc6 {[%emt 0:00:23]} 39. Qe3 {[%emt 0:02:48]} Rde8 {[%emt 0:00:44]} 40. Re2 {[%emt 0:00:47]} Kc7 {[%emt 0:04:53]} 41. Qh6 {[%emt 0:31:39]} Qd6 {[%emt 0:10:33]} 42. Qg7+ {[%emt 0:00:00]} Qd7 {[%emt 0:02:22]} 43. Qg6 {[%emt 0:00:00]} Re5 {[%emt 0:04:33]} 44. dxc6 {[%emt 0:00:00]} Qe7 {[%emt 0:00:55]} 45. Bd3 {[%emt 0:00:00]} Rxe2 {[%emt 0:02:38]} 46. Bxe2 {[%emt 0:00:00]} Rf6 {[%emt 0:02:46]} 47. Qd3 {[%emt 0:00:00]} Re6 {[%emt 0:03:37]} 48. Bf1 {[%emt 0:00:20]} Re3 {[%emt 0:01:13]} 49. Qf5 {[%emt 0:01:01]} Rf3 {[%emt 0:01:26]} 50. Qc2 {[%emt 0:01:27]} Rxa3 {[%emt 0:00:35]} 51. Qc4 {[%emt 0:00:31]} Rf3 {[%emt 0:02:08]} 52. Bg2 {[%emt 0:00:49]} Qh7+ {[%emt 0:02:49]} 53. Rc2 {[%emt 0:01:13]} Rf2 {[%emt 0:02:31]} 54. Be4 {[%emt 0:00:22]} Qf7 {[%emt 0:03:08]} 55. Qa4 {[%emt 0:02:37]} Rf1+ {[%emt 0:01:15]} 56. Rc1 {[%emt 0:00:08]} Rxc1+ {[%emt 0:00:26]} 57. Kxc1 {[%emt 0:00:04]} Qf1+ {[%emt 0:00:47]} 58. Kd2 {[%emt 0:00:08]} Na6 {[%emt 0:01:11]} 59. Qd4 {[%emt 0:00:49]} Qf4+ {[%emt 0:00:22]} 60. Ke2 {[%emt 0:00:28]} Nc5 {[%emt 0:00:37]} 61. Qg7+ {[%emt 0:00:44]} Kd6 {[%emt 0:00:21]} 62. Qd4+ {[%emt 0:00:53]} Ke7 {[%emt 0:00:26]} 63. Qg7+ {[%emt 0:00:27]} Kd6 {[%emt 0:01:30]} 64. Qd4+ {[%emt 0:00:26]} Kc7 {[%emt 0:00:10]} 65. Qg7+ {[%emt 0:00:05]} Kd6 {[%emt 0:00:37]} 66. Qd4+ {[%emt 0:00:06]} Ke7 {[%emt 0:00:05]} 67. Qg7+ {[%emt 0:00:06]} Ke6 {[%emt 0:00:04]} 68. Qg6+ {[%emt 0:01:08]} Ke5 {[%emt 0:00:06]} 69. Qg5+ {[%emt 0:01:46]} Qxg5 {[%emt 0:00:20]} 70. hxg5 {[%emt 0:00:07]} Nxe4 0-1

[Event "SVK-ch Open 2018"]
[Site "Banska Stiavnica"]
[Date "2018.07.07"]
[Round "1"]
[White "Paksi, Gyula"]
[Black "Sikorova, Olga"]
[Result "0-1"]
[ECO "E63"]
[WhiteElo "1811"]
[BlackElo "2193"]
[Annotator "NA"]
[PlyCount "58"]
[EventDate "2018.07.07"]
[EventType "swiss"]
[EventCountry "SVK"]
[SourceTitle "playchess.com"]
[Source "ChessBase"]
[SourceQuality "1"]
[TimeControl "40/5400+30:1800+30"]

1. d4 {[%emt 0:01:35]} Nf6 {[%emt 0:00:00]} 2. Nf3 {[%emt 0:00:10]} g6 {[%emt 0:00:00]} 3. c4 {[%emt 0:00:26]} Bg7 {[%emt 0:00:00]} 4. g3 {[%emt 0:00:12]} O-O {[%emt 0:00:01]} 5. Bg2 {[%emt 0:00:09]} d6 {[%emt 0:00:03]} 6. Nc3 {[%emt 0:00:17]} Nc6 {[%emt 0:00:28]} 7. O-O {[%emt 0:00:28]} a6 {[%emt 0:00:10]} 8. b3 {[%emt 0:01:45]} Bf5 {[%emt 0:05:17]} 9. Nh4 {[%emt 0:02:10]} Bd7 {[%emt 0:00:17]} 10. Nf3 {[%emt 0:00:29]} Qc8 {[%emt 0:01:21]} 11. Re1 {[%emt 0:00:54]} e5 {[%emt 0:12:28]} 12. e4 {[%emt 0:04:55]} Nxd4 {[%emt 0:04:32]} 13. Nxd4 {[%emt 0:01:28]} exd4 {[%emt 0:00:01]} 14. Qxd4 {[%emt 0:00:28]} Nxe4 {[%emt 0:01:38]} 15. Qxe4 {[%emt 0:10:00]} Bxc3 {[%emt 0:00:08]} 16. Be3 {[%emt 0:00:57]} Bc6 {[%emt 0:03:59]} 17. Qd3 {[%emt 0:02:03]} Bxa1 {[%emt 0:01:16]} 18. Rxa1 {[%emt 0:00:46]} Bxg2 {[%emt 0:01:45]} 19. Kxg2 {[%emt 0:00:19]} Qe6 {[%emt 0:02:21]} 20. Rd1 {[%emt 0:05:02]} f6 {[%emt 0:02:06]} 21. h4 {[%emt 0:03:44]} Rae8 {[%emt 0:00:49]} 22. Kh2 {[%emt 0:03:31]} Rf7 {[%emt 0:01:44]} 23. Qf1 {[%emt 0:02:22]} Qf5 {[%emt 0:06:44]} 24. Qg2 {[%emt 0:06:25]} Qe4 {[%emt 0:00:33]} 25. Qf1 {[%emt 0:00:17]} Qf3 {[%emt 0:01:13]} 26. Qd3 {[%emt 0:03:20]} Rfe7 {[%emt 0:01:09]} 27. Qd5+ {[%emt 0:04:56]} Qxd5 {[%emt 0:00:14]} 28. Rxd5 {[%emt 0:00:24]} Rxe3 {[%emt 0:03:15]} 29. fxe3 {[%emt 0:00:26]} Rxe3 {[%emt 0:00:01]} 0-1

[Event "SVK-ch Open 2018"]
[Site "Banska Stiavnica"]
[Date "2018.07.07"]
[Round "1"]
[White "Rabovszky, Gyorgy"]
[Black "Lintner, Igor"]
[Result "0-1"]
[ECO "B23"]
[WhiteElo "1807"]
[BlackElo "2173"]
[Annotator "NA"]
[PlyCount "50"]
[EventDate "2018.07.07"]
[EventType "swiss"]
[EventCountry "SVK"]
[SourceTitle "playchess.com"]
[Source "ChessBase"]
[SourceQuality "1"]
[TimeControl "40/5400+30:1800+30"]

1. e4 {[%emt 0:00:00]} c5 {[%emt 0:00:00]} 2. Nc3 {[%emt 0:00:11]} a6 {[%emt 0:00:00]} 3. f4 {[%emt 0:00:35]} e6 {[%emt 0:00:32]} 4. Nf3 {[%emt 0:00:59]} Nc6 {[%emt 0:00:37]} 5. Bc4 {[%emt 0:01:08]} b5 {[%emt 0:00:50]} 6. Be2 {[%emt 0:00:01]} Bb7 {[%emt 0:01:15]} 7. d3 {[%emt 0:01:29]} d5 {[%emt 0:01:33]} 8. O-O {[%emt 0:00:35]} Be7 {[%emt 0:00:38]} 9. f5 {[%emt 0:00:45]} dxe4 {[%emt 0:06:11]} 10. dxe4 {[%emt 0:04:01]} exf5 {[%emt 0:01:42]} 11. Bf4 {[%emt 0:05:15]} fxe4 {[%emt 0:07:42]} 12. Nxe4 {[%emt 0:00:30]} Nd4 {[%emt 0:07:56]} 13. Neg5 {[%emt 0:11:11]} Nf6 {[%emt 0:07:08]} 14. Nxd4 {[%emt 0:09:01]} cxd4 {[%emt 0:01:42]} 15. Be5 {[%emt 0:04:46]} Qd5 {[%emt 0:07:34]} 16. Bf3 {[%emt 0:00:03]} Qxe5 {[%emt 0:00:11]} 17. Bxb7 {[%emt 0:00:29]} Rd8 {[%emt 0:02:32]} 18. Bc6+ {[%emt 0:01:06]} Kf8 {[%emt 0:02:13]} 19. h4 {[%emt 0:15:35]} d3 {[%emt 0:09:27]} 20. Qf3 {[%emt 0:03:46]} Qd4+ {[%emt 0:05:43]} 21. Rf2 {[%emt 0:01:09]} h6 {[%emt 0:02:29]} 22. Ne4 {[%emt 0:04:18]} dxc2 {[%emt 0:09:10]} 23. Re1 {[%emt 0:04:57]} Qc4 {[%emt 0:02:01]} 24. Nxf6 {[%emt 0:03:21]} Bxf6 {[%emt 0:01:06]} 25. Qe3 Qxc6 0-1

[Event "SVK-ch Open 2018"]
[Site "Banska Stiavnica"]
[Date "2018.07.07"]
[Round "1"]
[White "Vyletel, Samuel"]
[Black "Nogrady, Vilmos"]
[Result "1-0"]
[ECO "A01"]
[WhiteElo "1798"]
[BlackElo "2154"]
[Annotator "NA"]
[PlyCount "33"]
[EventDate "2018.07.07"]
[EventType "swiss"]
[EventCountry "SVK"]
[SourceTitle "playchess.com"]
[Source "ChessBase"]
[SourceQuality "1"]
[TimeControl "40/5400+30:1800+30"]

1. b3 {[%emt 0:00:00]} e5 {[%emt 0:05:06]} 2. Bb2 {[%emt 0:00:22]} Nc6 {[%emt 0:00:52]} 3. e3 {[%emt 0:01:21]} Nf6 {[%emt 0:03:27]} 4. Bb5 {[%emt 0:02:01]} Bd6 {[%emt 0:15:18]} 5. Bxc6 {[%emt 0:02:50]} dxc6 {[%emt 0:00:34]} 6. d3 {[%emt 0:00:34]} Bg4 {[%emt 0:05:27]} 7. Ne2 {[%emt 0:03:02]} Qe7 {[%emt 0:02:20]} 8. Nd2 {[%emt 0:03:52]} O-O-O {[%emt 0:01:56]} 9. O-O {[%emt 0:10:18]} h5 {[%emt 0:06:07]} 10. Nc4 {[%emt 0:03:48]} e4 {[%emt 0:06:55]} 11. d4 {[%emt 0:08:11]} Bxh2+ {[%emt 0:11:55]} 12. Kxh2 {[%emt 0:08:00]} Bxe2 {[%emt 0:00:24]} 13. Qxe2 {[%emt 0:01:28]} Ng4+ {[%emt 0:00:09]} 14. Kh3 {[%emt 0:03:12]} Qe6 {[%emt 0:03:14]} 15. f3 {[%emt 0:08:51]} Nxe3+ {[%emt 0:16:02]} 16. Kh2 {[%emt 0:02:23]} exf3 {[%emt 0:02:03]} 17. Qxe3 {[%emt 0:04:37]} 1-0

[Event "SVK-ch Open 2018"]
[Site "Banska Stiavnica"]
[Date "2018.07.07"]
[Round "1"]
[White "Furman, Slavomir"]
[Black "Bango, Lukas"]
[Result "0-1"]
[ECO "A43"]
[WhiteElo "1768"]
[BlackElo "2148"]
[Annotator "NA"]
[PlyCount "40"]
[EventDate "2018.07.07"]
[EventType "swiss"]
[EventCountry "SVK"]
[SourceTitle "playchess.com"]
[Source "ChessBase"]
[SourceQuality "1"]
[TimeControl "40/5400+30:1800+30"]

1. d4 {[%emt 0:00:00]} c5 {[%emt 0:00:00]} 2. d5 {[%emt 0:02:27]} f5 {[%emt 0:00:00]} 3. Nf3 {[%emt 0:02:29]} Nf6 {[%emt 0:00:00]} 4. Bg5 {[%emt 0:01:30]} Qb6 {[%emt 0:00:13]} 5. Bxf6 {[%emt 0:02:55]} Qxf6 {[%emt 0:04:32]} 6. Nc3 {[%emt 0:04:28]} d6 {[%emt 0:02:02]} 7. g3 {[%emt 0:09:09]} g5 {[%emt 0:04:37]} 8. Qd3 {[%emt 0:11:45]} Bg7 {[%emt 0:01:17]} 9. Rb1 {[%emt 0:03:09]} O-O {[%emt 0:04:03]} 10. Bg2 {[%emt 0:03:35]} Nd7 {[%emt 0:00:05]} 11. Qe3 {[%emt 0:09:14]} g4 {[%emt 0:01:36]} 12. Ng5 {[%emt 0:06:07]} Ne5 {[%emt 0:00:28]} 13. f4 {[%emt 0:00:06]} gxf3 {[%emt 0:05:19]} 14. Nxf3 {[%emt 0:00:58]} Bh6 {[%emt 0:01:12]} 15. Qf2 {[%emt 0:00:47]} Ng4 {[%emt 0:02:36]} 16. Qg1 {[%emt 0:03:25]} Be3 {[%emt 0:00:06]} 17. Qf1 {[%emt 0:00:10]} Bf2+ {[%emt 0:00:04]} 18. Kd2 {[%emt 0:00:26]} Qh6+ {[%emt 0:00:12]} 19. e3 {[%emt 0:00:54]} Nxe3 {[%emt 0:00:21]} 20. Ke2 {[%emt 0:00:50]} Nxf1 {[%emt 0:00:05]} 0-1

[Event "SVK-ch Open 2018"]
[Site "Banska Stiavnica"]
[Date "2018.07.07"]
[Round "1"]
[White "Babinsky, Michal"]
[Black "Zatko, Gregor"]
[Result "0-1"]
[ECO "A25"]
[WhiteElo "1762"]
[BlackElo "2144"]
[Annotator "NA"]
[PlyCount "102"]
[EventDate "2018.07.07"]
[EventType "swiss"]
[EventCountry "SVK"]
[SourceTitle "playchess.com"]
[Source "ChessBase"]
[SourceQuality "1"]
[TimeControl "40/5400+30:1800+30"]

1. c4 {[%emt 0:00:00]} e5 {[%emt 0:00:00]} 2. Nc3 {[%emt 0:00:00]} Nc6 {[%emt 0:00:22]} 3. g3 {[%emt 0:00:00]} Bb4 {[%emt 0:01:03]} 4. Nf3 {[%emt 0:00:28]} Bxc3 {[%emt 0:00:10]} 5. dxc3 {[%emt 0:00:35]} d6 {[%emt 0:00:52]} 6. Bg2 {[%emt 0:00:53]} Nf6 {[%emt 0:00:10]} 7. O-O {[%emt 0:00:26]} O-O {[%emt 0:00:53]} 8. Bg5 {[%emt 0:01:36]} h6 {[%emt 0:02:17]} 9. Be3 {[%emt 0:01:57]} Be6 {[%emt 0:04:32]} 10. b3 {[%emt 0:01:27]} Qd7 {[%emt 0:00:18]} 11. Qc1 {[%emt 0:03:06]} Ng4 {[%emt 0:13:53]} 12. Rd1 {[%emt 0:04:14]} f5 {[%emt 0:01:49]} 13. Bd2 {[%emt 0:12:08]} Qf7 {[%emt 0:03:50]} 14. h3 {[%emt 0:09:13]} Nf6 {[%emt 0:00:33]} 15. Nh2 {[%emt 0:06:50]} f4 {[%emt 0:08:07]} 16. g4 {[%emt 0:07:34]} g5 {[%emt 0:03:57]} 17. f3 {[%emt 0:03:17]} Ne7 {[%emt 0:04:44]} 18. Be1 {[%emt 0:02:41]} Rae8 {[%emt 0:04:01]} 19. e4 {[%emt 0:02:55]} fxe3 {[%emt 0:00:54]} 20. Qxe3 {[%emt 0:00:15]} b6 {[%emt 0:01:06]} 21. Rd2 {[%emt 0:05:31]} Ng6 {[%emt 0:02:04]} 22. Bg3 {[%emt 0:00:24]} Nd7 {[%emt 0:09:21]} 23. Rad1 {[%emt 0:03:35]} Nc5 {[%emt 0:01:22]} 24. Qe1 {[%emt 0:04:18]} a5 {[%emt 0:01:28]} 25. Nf1 {[%emt 0:03:47]} a4 {[%emt 0:03:41]} 26. b4 {[%emt 0:08:13]} Nd7 {[%emt 0:03:15]} 27. Ne3 {[%emt 0:03:07]} Nf4 {[%emt 0:03:23]} 28. Qf1 {[%emt 0:03:30]} Qg7 {[%emt 0:00:42]} 29. Bxf4 {[%emt 0:02:55]} exf4 {[%emt 0:01:07]} 30. Nd5 {[%emt 0:01:15]} Bxd5 {[%emt 0:00:31]} 31. Rxd5 {[%emt 0:00:29]} Qxc3 {[%emt 0:01:43]} 32. Qd3 {[%emt 0:00:31]} Qxd3 {[%emt 0:03:48]} 33. R5xd3 {[%emt 0:01:29]} Re2 {[%emt 0:00:46]} 34. R1d2 {[%emt 0:01:22]} Rfe8 {[%emt 0:00:23]} 35. Rxe2 {[%emt 0:00:10]} Rxe2 {[%emt 0:07:20]} 36. Ra3 {[%emt 0:04:18]} Ne5 {[%emt 0:02:45]} 37. Bf1 {[%emt 0:01:24]} Rc2 {[%emt 0:01:17]} 38. c5 {[%emt 0:00:18]} dxc5 {[%emt 0:00:13]} 39. bxc5 {[%emt 0:01:06]} Rxc5 40. Rxa4 {[%emt 0:00:11]} Nxf3+ {[%emt 0:00:44]} 41. Kf2 {[%emt 0:30:30]} Ne5 {[%emt 0:30:25]} 42. Re4 {[%emt 0:01:11]} Kg7 {[%emt 0:03:08]} 43. a4 {[%emt 0:00:00]} Kf6 {[%emt 0:00:00]} 44. Be2 {[%emt 0:00:00]} Rc2 {[%emt 0:00:00]} 45. Ke1 {[%emt 0:00:00]} f3 {[%emt 0:00:00]} 46. Bf1 {[%emt 0:00:00]} Ra2 {[%emt 0:00:00]} 47. Rd4 {[%emt 0:00:00]} f2+ {[%emt 0:00:00]} 48. Kd1 {[%emt 0:00:00]} Ke7 {[%emt 0:00:00]} 49. Rd2 {[%emt 0:00:00]} Rxd2+ {[%emt 0:00:00]} 50. Kxd2 {[%emt 0:00:00]} Nf3+ {[%emt 0:00:00]} 51. Ke3 {[%emt 0:00:00]} Nh2 {[%emt 0:00:00]} 0-1

[Event "SVK-ch Open 2018"]
[Site "Banska Stiavnica"]
[Date "2018.07.07"]
[Round "1"]
[White "Hagara, Eduard"]
[Black "Horvath, Julia"]
[Result "0-1"]
[ECO "A00"]
[WhiteElo "1758"]
[BlackElo "2107"]
[Annotator "NA"]
[PlyCount "72"]
[EventDate "2018.07.07"]
[EventType "swiss"]
[EventCountry "SVK"]
[SourceTitle "playchess.com"]
[Source "ChessBase"]
[SourceQuality "1"]
[TimeControl "40/5400+30:1800+30"]

1. a3 {[%emt 0:00:00]} e5 {[%emt 0:00:00]} 2. c4 {[%emt 0:00:05]} a5 {[%emt 0:00:11]} 3. Nc3 {[%emt 0:00:35]} Nf6 {[%emt 0:00:05]} 4. d3 {[%emt 0:02:05]} d6 {[%emt 0:00:54]} 5. Bg5 {[%emt 0:02:24]} c6 {[%emt 0:00:46]} 6. Nf3 {[%emt 0:01:49]} Be7 {[%emt 0:00:14]} 7. h3 {[%emt 0:01:18]} O-O {[%emt 0:03:43]} 8. e3 {[%emt 0:02:29]} Nbd7 {[%emt 0:01:26]} 9. Be2 {[%emt 0:01:06]} Nc5 {[%emt 0:02:28]} 10. Rb1 {[%emt 0:02:57]} h6 {[%emt 0:13:14]} 11. Bh4 {[%emt 0:03:06]} Nh7 {[%emt 0:00:10]} 12. Bxe7 {[%emt 0:03:57]} Qxe7 {[%emt 0:00:05]} 13. d4 {[%emt 0:00:55]} Nd7 {[%emt 0:02:23]} 14. Qc2 {[%emt 0:08:53]} f5 {[%emt 0:04:13]} 15. g3 {[%emt 0:08:26]} f4 {[%emt 0:15:25]} 16. Bd3 {[%emt 0:12:14]} Ng5 {[%emt 0:05:28]} 17. Nh4 {[%emt 0:09:59]} fxe3 {[%emt 0:08:50]} 18. O-O {[%emt 0:08:20]} exf2+ {[%emt 0:11:59]} 19. Kg2 {[%emt 0:02:39]} exd4 {[%emt 0:11:49]} 20. Ne4 {[%emt 0:03:03]} Ne5 {[%emt 0:01:08]} 21. Nxg5 {[%emt 0:05:55]} hxg5 {[%emt 0:03:46]} 22. Bh7+ {[%emt 0:06:08]} Kh8 {[%emt 0:00:06]} 23. Nf5 {[%emt 0:00:31]} Bxf5 {[%emt 0:00:37]} 24. Bxf5 {[%emt 0:00:21]} Rxf5 {[%emt 0:08:40]} 25. Qxf5 {[%emt 0:01:33]} Nxc4 {[%emt 0:00:04]} 26. Qxf2 {[%emt 0:07:03]} Ne3+ {[%emt 0:00:06]} 27. Kh2 {[%emt 0:00:19]} Nxf1+ {[%emt 0:00:11]} 28. Rxf1 {[%emt 0:00:09]} c5 {[%emt 0:00:34]} 29. Qf3 {[%emt 0:00:59]} Re8 {[%emt 0:00:47]} 30. Rf2 {[%emt 0:00:36]} b5 {[%emt 0:00:31]} 31. Qb3 {[%emt 0:02:14]} b4 {[%emt 0:01:04]} 32. Qf3 {[%emt 0:00:36]} bxa3 {[%emt 0:02:05]} 33. Qxa3 {[%emt 0:00:19]} Qe3 {[%emt 0:00:17]} 34. Kg2 {[%emt 0:02:12]} Qxa3 {[%emt 0:00:18]} 35. bxa3 {[%emt 0:00:10]} Re3 {[%emt 0:00:19]} 36. Ra2 {[%emt 0:00:53]} a4 {[%emt 0:00:13]} 0-1

[Event "SVK-ch Open 2018"]
[Site "Banska Stiavnica"]
[Date "2018.07.07"]
[Round "1"]
[White "Beno, Milan"]
[Black "Brozyna, Mateusz"]
[Result "0-1"]
[ECO "C47"]
[WhiteElo "1739"]
[BlackElo "2098"]
[Annotator "NA"]
[PlyCount "64"]
[EventDate "2018.07.07"]
[EventType "swiss"]
[EventCountry "SVK"]
[SourceTitle "playchess.com"]
[Source "ChessBase"]
[SourceQuality "1"]
[TimeControl "40/5400+30:1800+30"]

1. e4 {[%emt 0:00:00]} e5 {[%emt 0:00:00]} 2. Nc3 {[%emt 0:00:07]} Nf6 {[%emt 0:00:00]} 3. Bc4 {[%emt 0:00:08]} Nc6 {[%emt 0:00:00]} 4. Nf3 {[%emt 0:00:48]} Be7 {[%emt 0:00:29]} 5. O-O {[%emt 0:00:40]} O-O {[%emt 0:00:15]} 6. d3 {[%emt 0:00:21]} d6 {[%emt 0:00:22]} 7. h3 {[%emt 0:02:06]} Na5 {[%emt 0:00:08]} 8. Bb3 {[%emt 0:03:05]} c6 {[%emt 0:00:43]} 9. Ne2 {[%emt 0:04:01]} Qc7 {[%emt 0:04:20]} 10. c4 {[%emt 0:02:58]} Nxb3 {[%emt 0:00:19]} 11. Qxb3 {[%emt 0:00:56]} h6 {[%emt 0:08:07]} 12. Ng3 {[%emt 0:06:48]} Be6 {[%emt 0:01:45]} 13. Qc3 {[%emt 0:00:48]} Nd7 {[%emt 0:08:23]} 14. Be3 {[%emt 0:08:03]} c5 {[%emt 0:01:11]} 15. Nh2 {[%emt 0:08:00]} Bh4 {[%emt 0:09:51]} 16. Qd2 {[%emt 0:09:07]} Qd8 {[%emt 0:06:14]} 17. Ne2 {[%emt 0:05:35]} f5 {[%emt 0:01:55]} 18. exf5 {[%emt 0:08:15]} Bxf5 {[%emt 0:00:34]} 19. f4 {[%emt 0:06:08]} Qe8 {[%emt 0:11:11]} 20. Kh1 {[%emt 0:05:10]} Qg6 {[%emt 0:03:12]} 21. Rad1 {[%emt 0:02:50]} Qh7 {[%emt 0:04:26]} 22. g4 {[%emt 0:02:54]} Bg6 {[%emt 0:02:30]} 23. f5 {[%emt 0:02:12]} Be8 {[%emt 0:01:42]} 24. Nf3 {[%emt 0:02:49]} Be7 {[%emt 0:01:14]} 25. Ng3 {[%emt 0:00:32]} Nf6 {[%emt 0:07:51]} 26. Ne4 {[%emt 0:01:34]} Bc6 {[%emt 0:00:52]} 27. Nxf6+ {[%emt 0:01:30]} Bxf6 {[%emt 0:02:43]} 28. Kh2 {[%emt 0:00:26]} Rae8 {[%emt 0:04:16]} 29. Qf2 {[%emt 0:06:01]} e4 {[%emt 0:10:41]} 30. dxe4 {[%emt 0:01:45]} Rxe4 {[%emt 0:00:34]} 31. Nd2 {[%emt 0:03:57]} Be5+ {[%emt 0:00:14]} 32. Kg1 {[%emt 0:00:17]} Rxe3 {[%emt 0:00:06]} 0-1

[Event "SVK-ch Open 2018"]
[Site "Banska Stiavnica"]
[Date "2018.07.07"]
[Round "1"]
[White "Juhaniak, Lubomir"]
[Black "Kerdik, Adam"]
[Result "1/2-1/2"]
[ECO "E32"]
[WhiteElo "1732"]
[BlackElo "2091"]
[Annotator "NA"]
[PlyCount "46"]
[EventDate "2018.07.07"]
[EventType "swiss"]
[EventCountry "SVK"]
[SourceTitle "playchess.com"]
[Source "ChessBase"]
[SourceQuality "1"]
[TimeControl "40/5400+30:1800+30"]

1. d4 {[%emt 0:00:00]} Nf6 {[%emt 0:00:00]} 2. c4 {[%emt 0:00:02]} e6 {[%emt 0:00:00]} 3. Nc3 {[%emt 0:00:41]} Bb4 {[%emt 0:00:00]} 4. Qc2 {[%emt 0:03:07]} O-O {[%emt 0:01:10]} 5. a3 {[%emt 0:02:31]} Bxc3+ {[%emt 0:00:48]} 6. Qxc3 {[%emt 0:01:33]} b6 {[%emt 0:01:21]} 7. Nf3 {[%emt 0:01:51]} Ne4 {[%emt 0:04:58]} 8. Qc2 {[%emt 0:01:38]} Bb7 {[%emt 0:00:15]} 9. g3 {[%emt 0:01:37]} d5 {[%emt 0:03:05]} 10. cxd5 {[%emt 0:02:38]} exd5 {[%emt 0:01:20]} 11. Bg2 {[%emt 0:03:28]} Nd7 {[%emt 0:02:00]} 12. O-O {[%emt 0:01:55]} Rc8 {[%emt 0:04:43]} 13. Qa4 {[%emt 0:05:03]} a6 {[%emt 0:02:20]} 14. Qd1 {[%emt 0:10:13]} c5 {[%emt 0:02:12]} 15. dxc5 {[%emt 0:02:29]} bxc5 {[%emt 0:00:55]} 16. Nd2 {[%emt 0:06:12]} f5 {[%emt 0:11:16]} 17. Nxe4 {[%emt 0:03:56]} fxe4 {[%emt 0:02:27]} 18. Bxe4 {[%emt 0:02:03]} Nf6 {[%emt 0:04:42]} 19. Bg2 {[%emt 0:02:55]} Qe7 {[%emt 0:03:42]} 20. Bg5 {[%emt 0:01:32]} Qe5 {[%emt 0:05:39]} 21. Bxf6 {[%emt 0:02:50]} Rxf6 {[%emt 0:00:18]} 22. Qd2 {[%emt 0:01:16]} Rb6 {[%emt 0:04:30]} 23. Rab1 {[%emt 0:01:58]} c4 {[%emt 0:08:42]} 1/2-1/2